[Event "Titled Tuesday Blitz February 07 Early 2023"]
[White "Mesa Cruz, Juan Carlos"]
[Black "Seletsky, Grigory"]
[WhiteFideId "6423400"]
[BlackFideId "14112191"]
[WhiteElo "2122"]
[BlackElo "2259"]
[Result "1-0"]
[Round "11"]
[TimeControl "180+2"]
[Date "2023.02.07"]
[WhiteClock "0:00:11"]
[BlackClock "0:00:26"]

1. e4 {[%clk 0:03:00]}  c5 {[%clk 0:02:59]} 2. Nf3 {[%clk 0:03:00]}  d6 {[%clk 0:02:57]} 3. d4 {[%clk 0:02:59]}  cxd4 {[%clk 0:02:58]} 4. Nxd4 {[%clk 0:02:59]}  Nf6 {[%clk 0:02:59]} 5. Nc3 {[%clk 0:02:59]}  a6 {[%clk 0:02:59]} 6. Bg5 {[%clk 0:02:59]}  e5 {[%clk 0:02:57]} 7. Nb3 {[%clk 0:02:45]}  Be7 {[%clk 0:02:56]} 8. a4 {[%clk 0:02:39]}  O-O {[%clk 0:02:55]} 9. a5 {[%clk 0:02:26]}  Be6 {[%clk 0:02:53]} 10. Bxf6 {[%clk 0:02:25]}  Bxf6 {[%clk 0:02:51]} 11. Nd5 {[%clk 0:02:25]}  Bg5 {[%clk 0:02:52]} 12. Nb6 {[%clk 0:02:24]}  Ra7 {[%clk 0:02:51]} 13. h4 {[%clk 0:02:23]}  Be7 {[%clk 0:02:45]} 14. g3 {[%clk 0:02:11]}  Nd7 {[%clk 0:02:45]} 15. Nd5 {[%clk 0:02:03]}  Nf6 {[%clk 0:02:38]} 16. Nxf6+ {[%clk 0:01:55]}  Bxf6 {[%clk 0:02:38]} 17. c4 {[%clk 0:01:51]}  Ra8 {[%clk 0:02:36]} 18. Qd3 {[%clk 0:01:47]}  Rc8 {[%clk 0:02:31]} 19. Nd2 {[%clk 0:01:46]}  Qc7 {[%clk 0:02:27]} 20. b3 {[%clk 0:01:36]}  Rfd8 {[%clk 0:02:26]} 21. Bh3 {[%clk 0:01:36]}  Qc5 {[%clk 0:02:21]} 22. Nf1 {[%clk 0:01:35]}  b6 {[%clk 0:02:06]} 23. axb6 {[%clk 0:01:31]}  Qxb6 {[%clk 0:02:05]} 24. Ne3 {[%clk 0:01:31]}  Rb8 {[%clk 0:02:04]} 25. Rb1 {[%clk 0:01:29]}  Qb4+ {[%clk 0:02:00]} 26. Ke2 {[%clk 0:01:29]}  a5 {[%clk 0:02:00]} 27. Nc2 {[%clk 0:01:11]}  Qc5 {[%clk 0:01:59]} 28. Rhd1 {[%clk 0:01:04]}  a4 {[%clk 0:01:59]} 29. Bxe6 {[%clk 0:01:03]}  axb3 {[%clk 0:01:51]} 30. Bxf7+ {[%clk 0:01:01]}  Kxf7 {[%clk 0:01:50]} 31. Rxb3 {[%clk 0:01:01]}  Rxb3 {[%clk 0:01:47]} 32. Qxb3 {[%clk 0:01:02]}  Rc8 {[%clk 0:01:31]} 33. Ne3 {[%clk 0:01:02]}  g5 {[%clk 0:01:26]} 34. Rd5 {[%clk 0:01:01]}  Qc6 {[%clk 0:01:25]} 35. c5 {[%clk 0:00:59]}  Kg6 {[%clk 0:01:20]} 36. hxg5 {[%clk 0:00:50]}  Kxg5 {[%clk 0:01:13]} 37. Rxd6 {[%clk 0:00:49]}  Qxe4 {[%clk 0:00:53]} 38. Qf7 {[%clk 0:00:35]}  Qg6 {[%clk 0:00:50]} 39. f4+ {[%clk 0:00:33]}  exf4 {[%clk 0:00:48]} 40. gxf4+ {[%clk 0:00:32]}  Kh4 {[%clk 0:00:48]} 41. Qxg6 {[%clk 0:00:28]}  hxg6 {[%clk 0:00:47]} 42. Rxf6 {[%clk 0:00:28]}  g5 {[%clk 0:00:44]} 43. Rh6+ {[%clk 0:00:24]}  Kg3 {[%clk 0:00:43]} 44. fxg5 {[%clk 0:00:24]}  Rxc5 {[%clk 0:00:43]} 45. g6 {[%clk 0:00:22]}  Rg5 {[%clk 0:00:39]} 46. g7 {[%clk 0:00:22]}  Kf4 {[%clk 0:00:36]} 47. Rf6+ {[%clk 0:00:15]}  Ke4 {[%clk 0:00:32]} 48. Nf5 {[%clk 0:00:11]}  Ke5 {[%clk 0:00:29]} 49. Rf8 {[%clk 0:00:11]}  Rg2+ {[%clk 0:00:26]} 50. Kf3 {[%clk 0:00:11]} 1-0


[Site "https://www.chess.com"]

[Event "Titled Tuesday Blitz February 07 Early 2023"]
[White "Lehtosaari, Mauri"]
[Black "Bozorov, Makhsum"]
[WhiteFideId "501999"]
[BlackFideId "14201330"]
[WhiteElo "2176"]
[BlackElo "2145"]
[Result "1/2-1/2"]
[Round "11"]
[TimeControl "180+2"]
[Date "2023.02.07"]
[WhiteClock "0:00:18"]
[BlackClock "0:00:21"]

1. d4 {[%clk 0:03:00]}  Nf6 {[%clk 0:02:59]} 2. Nf3 {[%clk 0:03:01]}  g6 {[%clk 0:02:59]} 3. Bg5 {[%clk 0:03:00]}  Bg7 {[%clk 0:02:56]} 4. e3 {[%clk 0:03:00]}  d5 {[%clk 0:02:53]} 5. Be2 {[%clk 0:03:00]}  O-O {[%clk 0:02:53]} 6. O-O {[%clk 0:03:01]}  Ne4 {[%clk 0:02:52]} 7. Bf4 {[%clk 0:02:59]}  c5 {[%clk 0:02:53]} 8. c3 {[%clk 0:02:59]}  Qb6 {[%clk 0:02:51]} 9. Qb3 {[%clk 0:02:58]}  c4 {[%clk 0:02:48]} 10. Qc2 {[%clk 0:02:55]}  Bf5 {[%clk 0:02:47]} 11. Qc1 {[%clk 0:02:55]}  Nc6 {[%clk 0:02:42]} 12. Nbd2 {[%clk 0:02:55]}  Nxd2 {[%clk 0:02:36]} 13. Nxd2 {[%clk 0:02:53]}  e5 {[%clk 0:02:34]} 14. dxe5 {[%clk 0:02:53]}  Nxe5 {[%clk 0:02:34]} 15. Bxe5 {[%clk 0:02:48]}  Bxe5 {[%clk 0:02:33]} 16. Nf3 {[%clk 0:02:47]}  Bg7 {[%clk 0:02:29]} 17. Rd1 {[%clk 0:02:45]}  Be4 {[%clk 0:02:23]} 18. Nd4 {[%clk 0:02:38]}  Rfe8 {[%clk 0:02:07]} 19. Rd2 {[%clk 0:01:09]}  g5 {[%clk 0:02:00]} 20. Bd1 {[%clk 0:01:08]}  Rad8 {[%clk 0:01:56]} 21. Bc2 {[%clk 0:01:08]}  Qg6 {[%clk 0:01:47]} 22. Bxe4 {[%clk 0:01:08]}  dxe4 {[%clk 0:01:43]} 23. Qf1 {[%clk 0:01:06]}  Rc8 {[%clk 0:01:32]} 24. g4 {[%clk 0:01:00]}  Bxd4 {[%clk 0:01:15]} 25. Rxd4 {[%clk 0:00:59]}  Qe6 {[%clk 0:01:15]} 26. Qg2 {[%clk 0:00:59]}  Rcd8 {[%clk 0:01:09]} 27. Rad1 {[%clk 0:00:59]}  Rxd4 {[%clk 0:01:09]} 28. Rxd4 {[%clk 0:00:59]}  b5 {[%clk 0:01:04]} 29. a3 {[%clk 0:00:58]}  a5 {[%clk 0:01:01]} 30. h3 {[%clk 0:00:58]}  b4 {[%clk 0:01:01]} 31. axb4 {[%clk 0:00:57]}  axb4 {[%clk 0:01:02]} 32. cxb4 {[%clk 0:00:54]}  Rb8 {[%clk 0:00:59]} 33. Qxe4 {[%clk 0:00:47]}  Qxe4 {[%clk 0:00:58]} 34. Rxe4 {[%clk 0:00:47]}  Rxb4 {[%clk 0:00:57]} 35. Kg2 {[%clk 0:00:31]}  Kg7 {[%clk 0:00:54]} 36. b3 {[%clk 0:00:30]}  Rxb3 {[%clk 0:00:51]} 37. Rxc4 {[%clk 0:00:31]}  h6 {[%clk 0:00:49]} 38. Rc6 {[%clk 0:00:30]}  Rb1 {[%clk 0:00:46]} 39. Kg3 {[%clk 0:00:26]}  Rg1+ {[%clk 0:00:45]} 40. Kf3 {[%clk 0:00:26]}  Ra1 {[%clk 0:00:45]} 41. Rb6 {[%clk 0:00:25]}  Rc1 {[%clk 0:00:45]} 42. Rb7 {[%clk 0:00:25]}  Kg6 {[%clk 0:00:44]} 43. Rb3 {[%clk 0:00:24]}  f6 {[%clk 0:00:42]} 44. Kg3 {[%clk 0:00:24]}  Rg1+ {[%clk 0:00:41]} 45. Kh2 {[%clk 0:00:25]}  Ra1 {[%clk 0:00:42]} 46. f4 {[%clk 0:00:22]}  gxf4 {[%clk 0:00:37]} 47. exf4 {[%clk 0:00:23]}  h5 {[%clk 0:00:36]} 48. Kg3 {[%clk 0:00:21]}  hxg4 {[%clk 0:00:35]} 49. hxg4 {[%clk 0:00:21]}  Rg1+ {[%clk 0:00:33]} 50. Kh4 {[%clk 0:00:21]}  Rh1+ {[%clk 0:00:33]} 51. Rh3 {[%clk 0:00:21]}  Rf1 {[%clk 0:00:32]} 52. f5+ {[%clk 0:00:22]}  Kg7 {[%clk 0:00:31]} 53. Ra3 {[%clk 0:00:20]}  Rh1+ {[%clk 0:00:31]} 54. Kg3 {[%clk 0:00:21]}  Rg1+ {[%clk 0:00:26]} 55. Kf4 {[%clk 0:00:20]}  Rf1+ {[%clk 0:00:26]} 56. Rf3 {[%clk 0:00:21]}  Ra1 {[%clk 0:00:25]} 57. Re3 {[%clk 0:00:20]}  Rf1+ {[%clk 0:00:24]} 58. Kg3 {[%clk 0:00:20]}  Rg1+ {[%clk 0:00:24]} 59. Kf3 {[%clk 0:00:20]}  Rf1+ {[%clk 0:00:23]} 60. Kg2 {[%clk 0:00:21]}  Ra1 {[%clk 0:00:23]} 61. Kg3 {[%clk 0:00:21]}  Rg1+ {[%clk 0:00:22]} 62. Kf4 {[%clk 0:00:22]}  Rf1+ {[%clk 0:00:22]} 63. Ke4 {[%clk 0:00:22]}  Rg1 {[%clk 0:00:21]} 64. Kf4 {[%clk 0:00:18]}  Rf1+ {[%clk 0:00:21]} 1/2-1/2


[Site "https://www.chess.com"]

[Event "Titled Tuesday Blitz February 07 Early 2023"]
[White "Aarav Dengla"]
[Black "Sputnik-11"]
[WhiteFideId "45059756"]
[WhiteElo "2343"]
[BlackElo "2381"]
[Result "1-0"]
[Round "11"]
[TimeControl "180+2"]
[Date "2023.02.07"]
[WhiteClock "0:00:50"]
[BlackClock "0:00:04"]

1. e4 {[%clk 0:02:58]}  c5 {[%clk 0:02:59]} 2. Nf3 {[%clk 0:02:57]}  Nc6 {[%clk 0:02:59]} 3. Bb5 {[%clk 0:02:53]}  g6 {[%clk 0:02:59]} 4. O-O {[%clk 0:02:51]}  Bg7 {[%clk 0:02:51]} 5. c3 {[%clk 0:02:50]}  e5 {[%clk 0:02:49]} 6. Re1 {[%clk 0:02:46]}  Nge7 {[%clk 0:02:47]} 7. d3 {[%clk 0:02:43]}  O-O {[%clk 0:02:46]} 8. Be3 {[%clk 0:02:42]}  d6 {[%clk 0:02:43]} 9. Qc1 {[%clk 0:02:41]}  a6 {[%clk 0:02:41]} 10. Ba4 {[%clk 0:02:39]}  b5 {[%clk 0:02:40]} 11. Bc2 {[%clk 0:02:39]}  Bg4 {[%clk 0:02:21]} 12. Nh4 {[%clk 0:02:31]}  b4 {[%clk 0:02:04]} 13. Bh6 {[%clk 0:02:27]}  Rb8 {[%clk 0:01:51]} 14. h3 {[%clk 0:02:25]}  Be6 {[%clk 0:01:48]} 15. Bxg7 {[%clk 0:02:12]}  Kxg7 {[%clk 0:01:49]} 16. f4 {[%clk 0:02:13]}  bxc3 {[%clk 0:01:39]} 17. bxc3 {[%clk 0:02:10]}  Ng8 {[%clk 0:01:34]} 18. Nf3 {[%clk 0:02:08]}  Qf6 {[%clk 0:01:26]} 19. fxe5 {[%clk 0:02:04]}  Nxe5 {[%clk 0:01:17]} 20. Rf1 {[%clk 0:02:00]}  Nxf3+ {[%clk 0:01:04]} 21. Rxf3 {[%clk 0:02:01]}  Qe5 {[%clk 0:01:04]} 22. Qd1 {[%clk 0:01:57]}  Qh5 {[%clk 0:00:42]} 23. d4 {[%clk 0:01:46]}  cxd4 {[%clk 0:00:36]} 24. cxd4 {[%clk 0:01:47]}  f5 {[%clk 0:00:23]} 25. exf5 {[%clk 0:01:20]}  Bxf5 {[%clk 0:00:19]} 26. Bxf5 {[%clk 0:01:12]}  Rxf5 {[%clk 0:00:18]} 27. g4 {[%clk 0:01:11]}  Qg5 {[%clk 0:00:18]} 28. Nc3 {[%clk 0:01:10]}  Rb2 {[%clk 0:00:11]} 29. Ne4 {[%clk 0:01:03]}  Qh4 {[%clk 0:00:03]} 30. gxf5 {[%clk 0:01:00]}  gxf5 {[%clk 0:00:04]} 31. Ng3 {[%clk 0:00:51]}  Qxd4+ {[%clk 0:00:04]} 32. Qxd4+ {[%clk 0:00:50]} 1-0


[Site "https://www.chess.com"]

[Event "Titled Tuesday Blitz February 07 Early 2023"]
[White "Rottenwohrer Suarez, Juan"]
[Black "Przybylski, Wojciech"]
[WhiteFideId "32068182"]
[BlackFideId "1117599"]
[WhiteElo "2265"]
[BlackElo "2321"]
[Result "0-1"]
[Round "11"]
[TimeControl "180+2"]
[Date "2023.02.07"]
[WhiteClock "0:00:02"]
[BlackClock "0:00:43"]

1. a3 {[%clk 0:03:00]}  a6 {[%clk 0:02:57]} 2. Nf3 {[%clk 0:03:00]}  Nf6 {[%clk 0:02:56]} 3. g3 {[%clk 0:03:01]}  g6 {[%clk 0:02:57]} 4. Bg2 {[%clk 0:03:02]}  Bg7 {[%clk 0:02:57]} 5. O-O {[%clk 0:03:02]}  O-O {[%clk 0:02:57]} 6. c4 {[%clk 0:03:03]}  c5 {[%clk 0:02:57]} 7. Nc3 {[%clk 0:03:04]}  Nc6 {[%clk 0:02:57]} 8. d4 {[%clk 0:03:05]}  d5 {[%clk 0:02:57]} 9. dxc5 {[%clk 0:02:47]}  dxc4 {[%clk 0:02:57]} 10. Qa4 {[%clk 0:02:41]}  Qa5 {[%clk 0:02:53]} 11. Qxc4 {[%clk 0:02:40]}  Be6 {[%clk 0:02:52]} 12. Qh4 {[%clk 0:02:31]}  Qxc5 {[%clk 0:02:51]} 13. Be3 {[%clk 0:02:25]}  Qh5 {[%clk 0:02:50]} 14. Qxh5 {[%clk 0:02:20]}  gxh5 {[%clk 0:02:50]} 15. Nd4 {[%clk 0:02:11]}  Nxd4 {[%clk 0:02:47]} 16. Bxd4 {[%clk 0:02:12]}  Nd7 {[%clk 0:02:35]} 17. Bxg7 {[%clk 0:01:34]}  Kxg7 {[%clk 0:02:36]} 18. Bxb7 {[%clk 0:01:33]}  Rab8 {[%clk 0:02:36]} 19. Bxa6 {[%clk 0:01:33]}  Rxb2 {[%clk 0:02:37]} 20. Bd3 {[%clk 0:01:29]}  Nc5 {[%clk 0:02:36]} 21. Bb5 {[%clk 0:01:08]}  Nb3 {[%clk 0:02:31]} 22. Rab1 {[%clk 0:00:57]}  Rc2 {[%clk 0:02:30]} 23. Ne4 {[%clk 0:00:52]}  Nd4 {[%clk 0:02:23]} 24. Bd3 {[%clk 0:00:20]}  Nxe2+ {[%clk 0:02:17]} 25. Kg2 {[%clk 0:00:20]}  Ra2 {[%clk 0:02:14]} 26. Ra1 {[%clk 0:00:20]}  Rxa1 {[%clk 0:01:59]} 27. Rxa1 {[%clk 0:00:21]}  Nd4 {[%clk 0:01:59]} 28. a4 {[%clk 0:00:18]}  Bd5 {[%clk 0:01:58]} 29. Kf1 {[%clk 0:00:17]}  Nb3 {[%clk 0:01:54]} 30. Ra3 {[%clk 0:00:09]}  Rc8 {[%clk 0:01:12]} 31. f3 {[%clk 0:00:09]}  f5 {[%clk 0:01:10]} 32. Ng5 {[%clk 0:00:08]}  Kf6 {[%clk 0:01:08]} 33. Nxh7+ {[%clk 0:00:08]}  Kg6 {[%clk 0:01:08]} 34. a5 {[%clk 0:00:03]}  Nc1 {[%clk 0:00:56]} 35. Bb1 {[%clk 0:00:01]}  e6 {[%clk 0:00:54]} 36. a6 {[%clk 0:00:01]}  Kxh7 {[%clk 0:00:49]} 37. a7 {[%clk 0:00:02]}  Nb3 {[%clk 0:00:43]} 0-1


[Site "https://www.chess.com"]

[Event "Titled Tuesday Blitz February 07 Early 2023"]
[White "Florescu, Codrut-Constantin"]
[Black "Khokhlova, Daria"]
[WhiteFideId "1202200"]
[BlackFideId "24182729"]
[WhiteElo "2259"]
[BlackElo "2111"]
[Result "1-0"]
[Round "11"]
[TimeControl "180+2"]
[Date "2023.02.07"]
[WhiteClock "0:00:51"]
[BlackClock "0:00:02"]

1. e4 {[%clk 0:02:56]}  c5 {[%clk 0:02:59]} 2. Nf3 {[%clk 0:02:54]}  d6 {[%clk 0:02:59]} 3. d4 {[%clk 0:02:54]}  cxd4 {[%clk 0:03:00]} 4. Nxd4 {[%clk 0:02:54]}  Nf6 {[%clk 0:03:00]} 5. Nc3 {[%clk 0:02:55]}  a6 {[%clk 0:02:59]} 6. f4 {[%clk 0:02:55]}  e6 {[%clk 0:02:48]} 7. Qf3 {[%clk 0:02:54]}  Be7 {[%clk 0:02:46]} 8. g4 {[%clk 0:02:52]}  Qc7 {[%clk 0:02:29]} 9. g5 {[%clk 0:02:51]}  Nfd7 {[%clk 0:02:28]} 10. Be3 {[%clk 0:02:51]}  b5 {[%clk 0:02:25]} 11. Bd3 {[%clk 0:02:38]}  Bb7 {[%clk 0:02:25]} 12. O-O-O {[%clk 0:02:36]}  Nc6 {[%clk 0:02:24]} 13. Kb1 {[%clk 0:02:35]}  Nc5 {[%clk 0:02:18]} 14. Rhg1 {[%clk 0:02:29]}  Nxd3 {[%clk 0:02:04]} 15. cxd3 {[%clk 0:02:28]}  b4 {[%clk 0:01:14]} 16. Nce2 {[%clk 0:02:27]}  a5 {[%clk 0:01:12]} 17. Rc1 {[%clk 0:02:24]}  Qd7 {[%clk 0:01:12]} 18. Nxc6 {[%clk 0:02:13]}  Bxc6 {[%clk 0:01:13]} 19. Bd4 {[%clk 0:02:13]}  Bf8 {[%clk 0:00:38]} 20. h4 {[%clk 0:02:07]}  a4 {[%clk 0:00:37]} 21. h5 {[%clk 0:02:06]}  Rg8 {[%clk 0:00:31]} 22. Qe3 {[%clk 0:01:17]}  Be7 {[%clk 0:00:20]} 23. Qd2 {[%clk 0:01:14]}  d5 {[%clk 0:00:19]} 24. e5 {[%clk 0:01:13]}  a3 {[%clk 0:00:15]} 25. b3 {[%clk 0:01:13]}  Bb5 {[%clk 0:00:15]} 26. Rc2 {[%clk 0:01:12]}  Qb7 {[%clk 0:00:14]} 27. Rgc1 {[%clk 0:01:11]}  Qa6 {[%clk 0:00:14]} 28. Rd1 {[%clk 0:01:05]}  Kd7 {[%clk 0:00:12]} 29. f5 {[%clk 0:01:03]}  exf5 {[%clk 0:00:12]} 30. Nf4 {[%clk 0:01:02]}  Rgc8 {[%clk 0:00:08]} 31. Nxd5 {[%clk 0:00:56]}  Rxc2 {[%clk 0:00:08]} 32. Qxc2 {[%clk 0:00:56]}  Rc8 {[%clk 0:00:05]} 33. Qd2 {[%clk 0:00:56]}  Bxg5 {[%clk 0:00:02]} 34. Qxg5 {[%clk 0:00:52]}  Bxd3+ {[%clk 0:00:02]} 35. Ka1 {[%clk 0:00:51]} 1-0


[Site "https://www.chess.com"]

[Event "Titled Tuesday Blitz February 07 Early 2023"]
[White "Mirzanurov, Bulat"]
[Black "Fernandez Siles, Luis"]
[WhiteFideId "4184521"]
[BlackFideId "2209420"]
[WhiteElo "2232"]
[BlackElo "2218"]
[Result "1-0"]
[Round "11"]
[TimeControl "180+2"]
[Date "2023.02.07"]
[WhiteClock "0:00:16"]
[BlackClock "0:00:17"]

1. e4 {[%clk 0:03:00]}  c5 {[%clk 0:02:59]} 2. Nf3 {[%clk 0:02:59]}  Nc6 {[%clk 0:02:59]} 3. Bb5 {[%clk 0:02:59]}  g6 {[%clk 0:02:59]} 4. Bxc6 {[%clk 0:02:56]}  dxc6 {[%clk 0:03:00]} 5. O-O {[%clk 0:02:56]}  Bg7 {[%clk 0:03:00]} 6. Re1 {[%clk 0:02:52]}  Nf6 {[%clk 0:03:00]} 7. d3 {[%clk 0:02:50]}  Nd7 {[%clk 0:02:58]} 8. a4 {[%clk 0:02:48]}  a5 {[%clk 0:02:57]} 9. Na3 {[%clk 0:02:46]}  e5 {[%clk 0:02:48]} 10. Nc4 {[%clk 0:02:42]}  Qe7 {[%clk 0:02:49]} 11. Bd2 {[%clk 0:02:36]}  b6 {[%clk 0:02:48]} 12. Be3 {[%clk 0:02:35]}  O-O {[%clk 0:02:43]} 13. c3 {[%clk 0:02:31]}  Ba6 {[%clk 0:02:40]} 14. Qc2 {[%clk 0:02:28]}  Bxc4 {[%clk 0:02:35]} 15. dxc4 {[%clk 0:02:29]}  Rfd8 {[%clk 0:02:28]} 16. Rad1 {[%clk 0:02:25]}  Nf8 {[%clk 0:02:28]} 17. b4 {[%clk 0:02:19]}  axb4 {[%clk 0:02:22]} 18. cxb4 {[%clk 0:02:20]}  cxb4 {[%clk 0:02:20]} 19. Bxb6 {[%clk 0:02:19]}  Rxd1 {[%clk 0:02:19]} 20. Rxd1 {[%clk 0:02:20]}  Ne6 {[%clk 0:02:18]} 21. c5 {[%clk 0:02:12]}  Bf8 {[%clk 0:02:01]} 22. Rd6 {[%clk 0:01:29]}  Qb7 {[%clk 0:01:56]} 23. Rxe6 {[%clk 0:01:27]}  fxe6 {[%clk 0:01:53]} 24. a5 {[%clk 0:01:20]}  Qd7 {[%clk 0:01:41]} 25. h4 {[%clk 0:01:17]}  Be7 {[%clk 0:01:27]} 26. Qb3 {[%clk 0:01:15]}  Bf6 {[%clk 0:01:23]} 27. g3 {[%clk 0:01:11]}  h6 {[%clk 0:01:20]} 28. Kg2 {[%clk 0:01:11]}  g5 {[%clk 0:01:21]} 29. hxg5 {[%clk 0:01:08]}  hxg5 {[%clk 0:01:22]} 30. g4 {[%clk 0:01:07]}  Qf7 {[%clk 0:00:59]} 31. Qxb4 {[%clk 0:01:06]}  Be7 {[%clk 0:00:56]} 32. Qb3 {[%clk 0:00:52]}  Kg7 {[%clk 0:00:56]} 33. Qd3 {[%clk 0:00:42]}  Qf4 {[%clk 0:00:52]} 34. Qd7 {[%clk 0:00:19]}  Qxg4+ {[%clk 0:00:50]} 35. Kf1 {[%clk 0:00:19]}  Kf6 {[%clk 0:00:45]} 36. Nxe5 {[%clk 0:00:19]}  Qxe4 {[%clk 0:00:36]} 37. Nxc6 {[%clk 0:00:16]}  Qh1+ {[%clk 0:00:29]} 38. Ke2 {[%clk 0:00:16]}  Qe4+ {[%clk 0:00:30]} 39. Kd2 {[%clk 0:00:14]}  Qd5+ {[%clk 0:00:29]} 40. Qxd5 {[%clk 0:00:14]}  exd5 {[%clk 0:00:30]} 41. Nb4 {[%clk 0:00:13]}  Ke5 {[%clk 0:00:28]} 42. a6 {[%clk 0:00:12]}  Kd4 {[%clk 0:00:27]} 43. a7 {[%clk 0:00:13]}  Bxc5 {[%clk 0:00:26]} 44. Nc6+ {[%clk 0:00:13]}  Kc4 {[%clk 0:00:25]} 45. Ne5+ {[%clk 0:00:13]}  Kb5 {[%clk 0:00:25]} 46. Bxc5 {[%clk 0:00:12]}  Kxc5 {[%clk 0:00:26]} 47. Nd3+ {[%clk 0:00:13]}  Kd6 {[%clk 0:00:26]} 48. Ke3 {[%clk 0:00:13]}  Rxa7 {[%clk 0:00:26]} 49. Kd4 {[%clk 0:00:12]}  Ra4+ {[%clk 0:00:26]} 50. Ke3 {[%clk 0:00:13]}  Ke6 {[%clk 0:00:25]} 51. Nc5+ {[%clk 0:00:12]}  Ke5 {[%clk 0:00:16]} 52. Nxa4 {[%clk 0:00:13]}  d4+ {[%clk 0:00:15]} 53. Ke2 {[%clk 0:00:14]}  Ke4 {[%clk 0:00:15]} 54. Nc5+ {[%clk 0:00:14]}  Kf4 {[%clk 0:00:14]} 55. Nd3+ {[%clk 0:00:15]}  Ke4 {[%clk 0:00:14]} 56. f3+ {[%clk 0:00:15]}  Kf5 {[%clk 0:00:15]} 57. Nf2 {[%clk 0:00:15]}  g4 {[%clk 0:00:15]} 58. Nxg4 {[%clk 0:00:15]}  Kf4 {[%clk 0:00:16]} 59. Nf2 {[%clk 0:00:15]}  d3+ {[%clk 0:00:16]} 60. Nxd3+ {[%clk 0:00:16]}  Kf5 {[%clk 0:00:17]} 61. Ke3 {[%clk 0:00:16]} 1-0


[Site "https://www.chess.com"]

[Event "Titled Tuesday Blitz February 07 Early 2023"]
[White "Prieto Aranguren, Alain"]
[Black "Herman, Daniel"]
[WhiteFideId "2268906"]
[BlackFideId "30935008"]
[WhiteElo "2258"]
[BlackElo "1956"]
[Result "1-0"]
[Round "11"]
[TimeControl "180+2"]
[Date "2023.02.07"]
[WhiteClock "0:01:58"]
[BlackClock "0:00:43"]

1. d4 {[%clk 0:02:53]}  d6 {[%clk 0:02:59]} 2. Nf3 {[%clk 0:02:52]}  Nf6 {[%clk 0:02:58]} 3. g3 {[%clk 0:02:50]}  g6 {[%clk 0:02:58]} 4. Bg2 {[%clk 0:02:50]}  Bg7 {[%clk 0:02:59]} 5. O-O {[%clk 0:02:50]}  O-O {[%clk 0:03:00]} 6. a4 {[%clk 0:02:50]}  Na6 {[%clk 0:02:38]} 7. c3 {[%clk 0:02:48]}  c5 {[%clk 0:02:36]} 8. Na3 {[%clk 0:02:46]}  cxd4 {[%clk 0:02:30]} 9. Nxd4 {[%clk 0:02:45]}  Nc5 {[%clk 0:02:18]} 10. Nc4 {[%clk 0:02:37]}  d5 {[%clk 0:02:10]} 11. Ne5 {[%clk 0:02:33]}  Nfe4 {[%clk 0:02:08]} 12. Nd3 {[%clk 0:02:32]}  e5 {[%clk 0:01:56]} 13. Nxc5 {[%clk 0:02:30]}  Nxc5 {[%clk 0:01:56]} 14. Nb5 {[%clk 0:02:28]}  Be6 {[%clk 0:01:50]} 15. Be3 {[%clk 0:02:26]}  Qe7 {[%clk 0:01:32]} 16. b4 {[%clk 0:02:22]}  Ne4 {[%clk 0:01:31]} 17. Bxe4 {[%clk 0:02:22]}  dxe4 {[%clk 0:01:32]} 18. Bc5 {[%clk 0:02:22]}  Qg5 {[%clk 0:01:30]} 19. Bxf8 {[%clk 0:02:21]}  Bxf8 {[%clk 0:01:28]} 20. Nc7 {[%clk 0:02:16]}  Rd8 {[%clk 0:01:14]} 21. Nxe6 {[%clk 0:02:15]}  fxe6 {[%clk 0:01:11]} 22. Qc1 {[%clk 0:02:13]}  e3 {[%clk 0:01:06]} 23. Qxe3 {[%clk 0:02:10]}  Qxe3 {[%clk 0:01:05]} 24. fxe3 {[%clk 0:02:10]}  Rd2 {[%clk 0:01:01]} 25. Rad1 {[%clk 0:02:08]}  Bh6 {[%clk 0:00:54]} 26. Rxd2 {[%clk 0:02:03]}  Bxe3+ {[%clk 0:00:54]} 27. Kg2 {[%clk 0:02:03]}  Bxd2 {[%clk 0:00:55]} 28. Rd1 {[%clk 0:02:00]}  Bxc3 {[%clk 0:00:52]} 29. Rd8+ {[%clk 0:02:00]}  Kg7 {[%clk 0:00:53]} 30. Rd7+ {[%clk 0:02:00]}  Kf6 {[%clk 0:00:53]} 31. Rxb7 {[%clk 0:02:00]}  h5 {[%clk 0:00:50]} 32. a5 {[%clk 0:01:58]}  e4 {[%clk 0:00:46]} 33. a6 {[%clk 0:01:58]}  Bd4 {[%clk 0:00:44]} 34. b5 {[%clk 0:01:58]}  Ke5 {[%clk 0:00:43]} 35. b6 {[%clk 0:01:58]} 1-0


[Site "https://www.chess.com"]